fUST/lending_fUST_20241230
["ID","MTS","AMOUNT","RATE_DAILY","PERIOD"]
[347162332,1735531852560,-500.0,0.00017158,2]
[347162333,1735531852570,-823.62,0.00017158,2]
[347162334,1735531852579,-579.44,0.00017159,2]
[347162335,1735531852589,-1096.67,0.00017159,2]
[347162336,1735531852599,-6493.97,0.00017159,2]
[347162337,1735531852608,-500.0,0.00017159,2]
[347162338,1735531852619,-799.8,0.00017159,2]
[347162339,1735531852628,-500.0,0.00017159,2]
[347162340,1735531852638,-275.59646694,0.00017298,2]
[347162341,1735531852647,-1000.0,0.00017298,2]
[347162342,1735531852658,-1000.0,0.00017298,2]
[347162343,1735531852667,-1000.0,0.00017298,2]
[347162344,1735531852677,-151.0,0.000174,2]
[347162345,1735531852687,-500.0,0.00017432,2]
[347162346,1735531852696,-1620.22,0.00017432,2]
[347162347,1735531852705,-601.56,0.00017432,2]
[347162348,1735531852715,-500.0,0.00017432,2]
[347162349,1735531852724,-500.0,0.00017432,2]
[347162350,1735531852734,-823.86,0.00017432,2]
[347162351,1735531852743,-827.35,0.00017432,2]
[347162352,1735531852753,-632.13426617,0.00017432,2]
[347162353,1735531852763,-500.0,0.00017432,2]
[347162354,1735531852772,-823.62,0.00017432,2]
[347162355,1735531852781,-579.44,0.00017433,2]
[347162356,1735531852791,-1096.67,0.00017433,2]
[347162357,1735531852800,-6493.97,0.00017433,2]
[347162358,1735531852810,-500.0,0.00017433,2]
[347162359,1735531852823,-799.8,0.00017433,2]
[347162360,1735531852833,-601.02883114,0.00017433,2]
[347162361,1735531852843,-14654.56,0.000175,2]
[347162362,1735531852853,-16995.94,0.000175,2]
[347162363,1735531852864,-5505.07,0.000175,2]
[347162364,1735531852873,-505.07218513,0.00017531,2]
[347162365,1735531852883,-408.295,0.00017602,2]
[347162366,1735531852892,-500.0,0.00017706,2]
[347162367,1735531852902,-1620.22,0.00017706,2]
[347162368,1735531852913,-601.56,0.00017706,2]
[347162369,1735531852922,-500.0,0.00017706,2]
[347162370,1735531852932,-500.0,0.00017706,2]
[347162371,1735531852941,-823.86,0.00017706,2]
[347162372,1735531852951,-827.35,0.00017706,2]
[347162373,1735531852960,-500.0,0.00017706,2]
[347162374,1735531852969,-823.62,0.00017706,2]
[347162375,1735531852978,-579.44,0.00017707,2]
[347162376,1735531852988,-1096.67,0.00017707,2]
[347162377,1735531852997,-6493.97,0.00017707,2]
[347162378,1735531853006,-376.78887205,0.00017707,2]
[347162379,1735531853015,-799.8,0.00017707,2]
[347162380,1735531853025,-823.0,0.00017869,2]
[347162381,1735531853035,-500.0,0.0001798,2]
[347162382,1735531853105,-1620.22,0.0001798,2]
[347162383,1735531853123,-601.56,0.0001798,2]
[347162384,1735531853133,-500.0,0.0001798,2]
[347162385,1735531853142,-500.0,0.0001798,2]
[347162386,1735531853152,-823.86,0.0001798,2]
[347162387,1735531853162,-827.35,0.0001798,2]
[347162388,1735531853171,-515.14207719,0.0001798,2]
[347162389,1735531853181,-823.62,0.0001798,2]
[347162390,1735531853191,-579.44,0.00017981,2]
[347162391,1735531853200,-1096.67,0.00017981,2]
[347162392,1735531853210,-6493.97,0.00017981,2]
[347162393,1735531853220,-799.8,0.00017981,2]
[347162394,1735531853230,-5164.75756255,0.00018,2]
[347162395,1735531853240,-151.0,0.000181,2]
[347162396,1735531853250,-500.0,0.00018254,2]
[347162397,1735531853260,-1620.22,0.00018254,2]
[347162398,1735531853269,-601.56,0.00018254,2]
[347162399,1735531853279,-500.0,0.00018254,2]
[347162400,1735531853288,-428.95,0.00018254,2]
[347162401,1735531853298,-823.86,0.00018254,2]
[347162402,1735531853307,-827.35,0.00018254,2]
[347162403,1735531853318,-823.62,0.00018254,2]
[347162404,1735531853328,-579.44,0.00018255,2]
[347162405,1735531853338,-1096.67,0.00018255,2]
[347162406,1735531853348,-6493.97,0.00018255,2]
[347162407,1735531853358,-799.8,0.00018255,2]
[347162408,1735531853369,-1500.0,0.000183,2]
[347162409,1735531853379,-162.1200628,0.00018322,2]
[347162410,1735531853389,-2305.90116892,0.000184,2]
[347162411,1735531853399,-2305.90116889,0.000184,2]
[347162412,1735531853408,-2305.90116889,0.000184,2]
[347162413,1735531853418,-2305.90116889,0.000184,2]
[347162414,1735531853427,-4601.18541207,0.000185,2]
[347162415,1735531853437,-3432.34720678,0.000185,2]
[347162416,1735531853447,-3432.34720677,0.000185,2]
[347162417,1735531853456,-3432.34720677,0.000185,2]
[347162418,1735531853466,-3432.34720677,0.000185,2]
[347162419,1735531853477,-500.0,0.00018528,2]
[347162420,1735531853486,-1620.22,0.00018528,2]
[347162421,1735531853496,-601.56,0.00018528,2]
[347162422,1735531853505,-517.21429866,0.00018528,2]
[347162423,1735531853515,-823.86,0.00018528,2]
[347162424,1735531853524,-827.35,0.00018528,2]
[347162425,1735531853534,-823.62,0.00018528,2]
[347162426,1735531853544,-579.44,0.00018529,2]
[347162427,1735531853554,-1096.67,0.00018529,2]
[347162428,1735531853563,-6493.97,0.00018529,2]
[347162429,1735531853574,-799.8,0.00018529,2]
[347162430,1735531853584,-151.0,0.000187,2]
[347162431,1735531853595,-594.06075505,0.00018802,2]
[347162432,1735531853604,-1620.22,0.00018802,2]
[347162433,1735531853614,-601.56,0.00018802,2]
[347162434,1735531853624,-823.86,0.00018802,2]
[347162435,1735531853633,-827.35,0.00018802,2]
[347162436,1735531853644,-823.62,0.00018802,2]
[347162437,1735531853653,-579.44,0.00018803,2]
[347162438,1735531853663,-1096.67,0.00018803,2]
[347162439,1735531853673,-6493.97,0.00018803,2]
[347162440,1735531853683,-799.8,0.00018803,2]
[347162441,1735531853692,-681.44059165,0.000189,2]
[347162442,1735531853702,-1620.22,0.00019076,2]
[347162443,1735531853711,-601.56,0.00019076,2]
[347162444,1735531853721,-823.86,0.00019076,2]
[347162445,1735531853731,-827.35,0.00019076,2]
[347162446,1735531853740,-823.62,0.00019076,2]
[347162447,1735531853750,-579.44,0.00019077,2]
[347162448,1735531853759,-1096.67,0.00019077,2]
[347162449,1735531853768,-6493.97,0.00019077,2]
[347162450,1735531853778,-799.8,0.00019077,2]
[347162451,1735531853788,-394.0,0.00019181,2]
[347162452,1735531853797,-1620.22,0.0001935,2]
[347162453,1735531853807,-601.56,0.0001935,2]
[347162454,1735531853817,-823.86,0.0001935,2]
[347162455,1735531853830,-827.35,0.0001935,2]
[347162456,1735531853839,-823.62,0.0001935,2]
[347162457,1735531853849,-579.44,0.00019351,2]
[347162458,1735531853858,-1096.67,0.00019351,2]
[347162459,1735531853869,-6493.97,0.00019351,2]
[347162460,1735531853878,-799.8,0.00019351,2]
[347162461,1735531853887,-151.0,0.000194,2]
[347162462,1735531853897,-151.0,0.000194,2]
[347162463,1735531853907,-352.5060848,0.00019562,2]
[347162464,1735531853916,-352.5060848,0.00019562,2]
[347162465,1735531853926,-352.5060848,0.00019562,2]
[347162466,1735531853935,-1152.0,0.00019585,2]
[347162467,1735531853944,-2000.0,0.00019597,2]
[347162468,1735531853953,-1620.22,0.00019624,2]
[347162469,1735531853962,-601.56,0.00019624,2]
[347162470,1735531853972,-823.86,0.00019624,2]
[347162471,1735531853981,-827.35,0.00019624,2]
[347162472,1735531853991,-823.62,0.00019624,2]
[347162473,1735531854001,-579.44,0.00019625,2]
[347162474,1735531854011,-1096.67,0.00019625,2]
[347162475,1735531854021,-6493.97,0.00019625,2]
[347162476,1735531854030,-799.8,0.00019625,2]
[347162477,1735531854039,-493.858,0.0001963,2]
[347162478,1735531854048,-500.0,0.00019726,2]
[347162479,1735531854057,-5868.57371091,0.000198,2]
[347162480,1735531854067,-14654.56,0.000198,2]
[347162481,1735531854077,-16995.94,0.000198,2]
[347162482,1735531854089,-5505.07,0.000198,2]
[347162483,1735531854100,-153.5340186,0.00019836,2]
[347162484,1735531854110,-214.3641981,0.00019836,2]
[347162485,1735531854120,-154.066111,0.00019836,2]
[347162486,1735531854130,-307.2021424,0.00019836,2]
[347162487,1735531854140,-214.3641981,0.00019836,2]
[347162488,1735531854149,-153.5340186,0.00019836,2]
[347162489,1735531854159,-153.0,0.00019836,2]
[347162490,1735531854168,-214.1582247,0.00019836,2]
[347162491,1735531854177,-153.3885975,0.00019836,2]
[347162492,1735531854187,-153.0,0.00019836,2]
[347162493,1735531854196,-1620.3121392,0.00019898,2]
[347162494,1735531854205,-601.5783027,0.00019898,2]
[347162495,1735531854215,-824.06287456,0.00019898,2]
[347162496,1735531854224,-827.420723,0.00019898,2]
[347162497,1735531854233,-579.46,0.00019899,2]
[347162498,1735531854243,-1096.74946862,0.00019899,2]
[347162499,1735531854251,-6494.15659679,0.00019899,2]
[347162500,1735531854261,-800.01,0.00019899,2]
[347162501,1735531854270,-2941.72026401,0.000199,2]
[347162502,1735531854280,-206.3,0.00019907,2]
[347162503,1735531854289,-191.684,0.00019907,2]
[347162504,1735531854299,-251.615,0.00019907,2]
[347162505,1735531854308,-150.333,0.00019907,2]
[347162506,1735531854317,-2098.0,0.00019907,2]
[347162507,1735531854327,-613.485,0.00019907,2]
[347162508,1735531854336,-2358.0,0.00019907,2]
[347162509,1735531854346,-10339.57476554,0.00019992,2]
[347162510,1735531854355,-160.0,0.00019999,2]
[347162511,1735531854365,-160.36464051,0.00019999,2]
[347162512,1735531854375,-160.0,0.00019999,2]
[347162513,1735531854384,-579291.50414917,0.0002,4]
[347162514,1735531854719,-1901.83,0.00013597,2]
[347162515,1735531854728,-500.0,0.00013597,2]
[347162516,1735531854737,-500.0,0.00013597,2]
[347162517,1735531854747,-514.27,0.00013871,2]
[347162518,1735531854756,-1901.83,0.00013871,2]
[347162519,1735531854765,-500.0,0.00013871,2]
[347162520,1735531854775,-514.27,0.00014145,2]
[347162521,1735531854784,-1901.83,0.00014145,2]
[347162522,1735531854794,-501.44735443,0.00014145,2]
[347162523,1735531854803,-514.27,0.00014419,2]
[347162524,1735531854813,-400.60470237,0.00014419,2]
[347162525,1735531854827,-1501.22529763,0.00014419,2]
[347162526,1735531854836,-514.27,0.00014693,2]
[347162527,1735531854846,-1901.83,0.00014693,2]
[347162528,1735531854855,-514.27,0.00014967,2]
[347162529,1735531854866,-1901.83,0.00014967,2]
[347162530,1735531854876,-514.27,0.00015241,2]
[347162531,1735531854885,-514.27,0.00015515,2]
[347162532,1735531854895,-95492.74485397,0.0002,4]
[347162533,1735531854907,-198638.80654494,0.0002,4]
[347162534,1735531854925,-500.0,0.00013871,2]
[347162535,1735531854934,-147.30096439,0.0002,4]
[347162536,1735531855327,-500.0,0.00013597,2]
[347162537,1735531855338,-500.0,0.00014145,2]
[347162538,1735531855347,-470.07751262,0.00014419,2]
[347162539,1735531855357,-1901.83,0.00015241,2]
[347162540,1735531855367,-1901.83,0.00015515,2]
[347162541,1735531855377,-514.27,0.00015789,2]
[347162542,1735531855387,-1901.83,0.00015789,2]
[347162543,1735531855397,-514.27,0.00016063,2]
[347162544,1735531855408,-1581.221782,0.00016063,2]
[347162545,1735531855424,-320.608218,0.00016063,2]
[347162546,1735531855435,-514.27,0.00016337,2]
[347162547,1735531855445,-1901.83,0.00016337,2]
[347162548,1735531855455,-514.27,0.00016611,2]
[347162549,1735531855465,-1629.03733909,0.00016611,2]
[347162551,1735531921210,-390.78954056,0.00013459,2]
[347162552,1735531921235,-501.08374099,0.00013595,2]
[347162553,1735531921261,-501.74947503,0.00013595,2]
[347162554,1735531921287,-14.92167543,0.00013595,2]
[347162555,1735531921315,-489.37816837,0.00013595,2]
[347162556,1735531921341,-500.0,0.00013595,2]
[347162557,1735531921366,-419.16626364,0.00013596,2]
[347162558,1735531921397,-80.83373636,0.00013596,2]
[347162559,1735531921422,-500.0,0.00013596,2]
[347162560,1735531921447,-500.42203127,0.00013596,2]
[347162561,1735531921471,-327.28866438,0.00013596,2]
[347162562,1735531921502,-172.71133562,0.00013596,2]
[347162563,1735531921526,-500.71698057,0.00013596,2]
[347162564,1735531921552,-544.12943854,0.00013596,2]
[347162565,1735531921577,-190.98667728,0.00013596,2]
[347162566,1735531921606,-309.57081379,0.00013596,2]
[347162567,1735531921632,-437.69570712,0.00013596,2]
[347162568,1735531921658,-500.0,0.00013596,2]
[347162569,1735531921682,-161.2779111,0.00013596,2]
[347162570,1735531921738,-338.7220889,0.00013596,2]
[347162571,1735531921764,-612.57,0.00013596,2]
[347162572,1735531921788,-10.21490019,0.00013596,2]
[347162573,1735532206411,1420.56249093,0.00012696,2]
[347162609,1735532971812,-574.77802765,0.00012196,2]
[347162611,1735532971837,-300.0,0.00012499,2]
[347162613,1735532971861,-540.28996077,0.000125,2]
[347162615,1735532971890,-1142.83385667,0.000125,2]
[347162616,1735532996757,-1360.49068122,0.000125,2]
[347162642,1735533032119,-6774.67310326,0.000125,2]
[347162643,1735533032131,-3132.21957237,0.00012696,2]
[347162644,1735533032143,-300.0,0.00013358,2]
[347162645,1735533032155,-196.24264449,0.00013359,2]
[347162646,1735533032170,-162.1200628,0.00013495,2]
[347162647,1735533032180,-470.95740444,0.00013594,2]
[347162661,1735533037812,-29.04259556,0.00013594,2]
[347162662,1735533037823,-500.0,0.00013594,2]
[347162663,1735533037834,-273.27422531,0.00013594,2]
[347162664,1735533037869,-226.72577469,0.00013594,2]
[347162665,1735533037880,-500.0,0.00013594,2]
[347162666,1735533037890,-609.34,0.00013594,2]
[347162667,1735533037901,-500.0,0.00013594,2]
[347162668,1735533037911,-268.7287307,0.00013594,2]
[347162669,1735533037921,-500.0,0.00013594,2]
[347162670,1735533037932,-504.33977082,0.00013594,2]
[347162671,1735533037942,-500.0,0.00013595,2]
[347162672,1735533037953,-505.31232038,0.00013595,2]
[347162673,1735533037964,-500.0,0.00013595,2]
[347162674,1735533037975,-358.34,0.00013595,2]
[347162675,1735533037986,-500.0,0.00013595,2]
[347162676,1735533037996,-500.0,0.00013595,2]
[347162677,1735533038007,-500.0,0.00013595,2]
[347162678,1735533038019,-500.0,0.00013595,2]
[347162679,1735533038149,-500.0,0.00013595,2]
[347162680,1735533038165,-500.0,0.00013595,2]
[347162681,1735533038176,-501.60524402,0.00013595,2]
[347162682,1735533038186,-500.0,0.00013595,2]
[347162683,1735533038195,-500.0,0.00013595,2]
[347162684,1735533038206,-500.0,0.00013595,2]
[347162685,1735533038215,-500.0,0.00013595,2]
[347162686,1735533038225,-500.0,0.00013595,2]
[347162687,1735533038234,-500.68052591,0.00013595,2]
[347162688,1735533038245,-501.89350369,0.00013595,2]
[347162689,1735533038254,-500.0,0.00013595,2]
[347162690,1735533038263,-405.05910757,0.00013595,2]
[347162691,1735533038273,-500.0,0.00013595,2]
[347162692,1735533038283,-517.05,0.00013595,2]
[347162693,1735533038293,-500.0,0.00013595,2]
[347162694,1735533038304,-500.0,0.00013595,2]
[347162695,1735533038314,-500.0,0.00013595,2]
[347162696,1735533038323,-523.74,0.00013595,2]
[347162697,1735533038333,-500.0,0.00013595,2]
[347162698,1735533038343,-180.63409864,0.00013595,2]
[347162699,1735533038352,-644.07927126,0.00013595,2]
[347162700,1735533038361,-373.74,0.00013595,2]
[347162701,1735533038372,-500.0,0.00013595,2]
[347162702,1735533038381,-1044.97,0.00013595,2]
[347162703,1735533038390,-500.0,0.00013595,2]
[347162704,1735533038399,-500.0,0.00013595,2]
[347162705,1735533038409,-502.47937163,0.00013595,2]
[347162706,1735533038419,-500.0,0.00013595,2]
[347162707,1735533038428,-500.0,0.00013595,2]
[347162708,1735533038437,-501.99199146,0.00013595,2]
[347162709,1735533038447,-500.0,0.00013595,2]
[347162710,1735533038457,-489.78509981,0.00013596,2]
[347162711,1735533038466,-500.0,0.00013596,2]
[347162712,1735533038475,-500.0,0.00013596,2]
[347162713,1735533038484,-500.0,0.00013596,2]
[347162714,1735533038494,-500.0,0.00013596,2]
[347162715,1735533038503,-502.25796714,0.00013596,2]
[347162716,1735533038513,-500.0,0.00013596,2]
[347162717,1735533038522,-500.68935962,0.00013596,2]
[347162718,1735533038531,-500.23145671,0.00013596,2]
[347162719,1735533038541,-501.73570251,0.00013596,2]
[347162720,1735533038553,-500.0800814,0.00013596,2]
[347162721,1735533038562,-500.0,0.00013596,2]
[347162722,1735533038572,-501.64253892,0.00013596,2]
[347162723,1735533038581,-500.0,0.00013596,2]
[347162724,1735533038590,-500.96138831,0.00013596,2]
[347162725,1735533038600,-501.09700744,0.00013596,2]
[347162726,1735533038609,-500.89187948,0.00013596,2]
[347162727,1735533038619,-501.65111526,0.00013596,2]
[347162728,1735533038629,-500.0,0.00013596,2]
[347162729,1735533038638,-544.69696242,0.00013596,2]
[347162730,1735533038647,-500.0,0.00013596,2]
[347162731,1735533038657,-500.0,0.00013596,2]
[347162732,1735533038667,-500.93117297,0.00013596,2]
[347162733,1735533038676,-500.0,0.00013596,2]
[347162734,1735533038685,-500.0,0.00013596,2]
[347162735,1735533038695,-500.0,0.00013596,2]
[347162736,1735533038704,-500.0,0.00013596,2]
[347162737,1735533038714,-501.64212445,0.00013596,2]
[347162738,1735533038723,-500.0,0.00013596,2]
[347162739,1735533038733,-500.0,0.00013596,2]
[347162740,1735533038742,-500.74400167,0.00013596,2]
[347162741,1735533038752,-500.0,0.00013596,2]
[347162742,1735533038761,-275.33911722,0.00013596,2]
[347162743,1735533038770,-500.39211905,0.00013596,2]
[347162744,1735533038780,-501.1839175,0.00013596,2]
[347162745,1735533038789,-194.24712396,0.00013596,2]
[347162746,1735533038800,-500.0,0.00013596,2]
[347162747,1735533038810,-500.0,0.00013596,2]
[347162748,1735533038819,-500.0,0.00013596,2]
[347162749,1735533038829,-500.0,0.00013596,2]
[347162750,1735533038838,-509.44854795,0.00013596,2]
[347162751,1735533038848,-504.44556353,0.00013596,2]
[347162752,1735533038857,-500.0,0.00013596,2]
[347162753,1735533038867,-500.0,0.00013596,2]
[347162754,1735533038876,-500.0,0.00013596,2]
[347162755,1735533038886,-503.8741069,0.00013596,2]
[347162756,1735533038896,-505.77979966,0.00013596,2]
[347162757,1735533038906,-500.0,0.00013596,2]
[347162758,1735533038915,-500.0,0.00013596,2]
[347162759,1735533038925,-500.0,0.00013596,2]
[347162760,1735533038935,-491.95752243,0.00013596,2]
[347162761,1735533038944,-502.51047285,0.00013596,2]
[347162762,1735533038954,-500.0,0.00013596,2]
[347162763,1735533038964,-500.0,0.00013596,2]
[347162764,1735533038973,-500.0,0.00013596,2]
[347162765,1735533038982,-500.0,0.00013596,2]
[347162766,1735533038991,-500.0,0.00013596,2]
[347162767,1735533039001,-500.0,0.00013596,2]
[347162768,1735533039011,-500.0,0.00013596,2]
[347162769,1735533039021,-507.7868198,0.00013596,2]
[347162770,1735533039030,-500.0,0.00013596,2]
[347162771,1735533039040,-500.0,0.00013596,2]
[347162772,1735533039050,-500.0,0.00013596,2]
[347162773,1735533039060,-500.0,0.00013596,2]
[347162774,1735533039069,-504.61169402,0.00013596,2]
[347162775,1735533039078,-500.0,0.00013596,2]
[347162776,1735533039088,-509.13395835,0.00013596,2]
[347162777,1735533039097,-500.0,0.00013596,2]
[347162778,1735533039106,-501.2332454,0.00013596,2]
[347162779,1735533039115,-504.39487205,0.00013596,2]
[347162780,1735533039124,-500.0,0.00013596,2]
[347162781,1735533039134,-500.0,0.00013596,2]
[347162782,1735533039143,-500.0,0.00013596,2]
[347162783,1735533039154,-500.0,0.00013596,2]
[347162784,1735533039166,-214.27216354,0.00013596,2]
[347162786,1735533039175,-500.0,0.00013596,2]
[347162787,1735533039185,-500.89251274,0.00013596,2]
[347162788,1735533039195,-500.0,0.00013596,2]
[347162789,1735533039204,-500.0,0.00013596,2]
[347162790,1735533039215,-500.26217952,0.00013596,2]
[347162791,1735533039224,-500.0,0.00013596,2]
[347162792,1735533039234,-500.0,0.00013596,2]
[347162793,1735533039243,-500.0,0.00013596,2]
[347162794,1735533039253,-500.92555014,0.00013596,2]
[347162795,1735533039262,-500.0,0.00013596,2]
[347162796,1735533039272,-500.0,0.00013596,2]
[347162797,1735533039281,-501.24846821,0.00013596,2]
[347162798,1735533039291,-500.0,0.00013596,2]
[347162799,1735533039302,-500.0,0.00013596,2]
[347162800,1735533039311,-500.0,0.00013596,2]
[347162801,1735533039320,-500.0,0.00013596,2]
[347162802,1735533039330,-363.30281205,0.00013596,2]
[347162803,1735533039340,-504.59705988,0.00013596,2]
[347162804,1735533039349,-503.65668775,0.00013596,2]
[347162805,1735533039358,-502.08830781,0.00013596,2]
[347162806,1735533039368,-507.10366578,0.00013596,2]
[347162807,1735533039376,-506.68054398,0.00013596,2]
[347162808,1735533039387,-511.74190359,0.00013596,2]
[347162809,1735533039396,-500.0,0.00013596,2]
[347162810,1735533039406,-539.43231961,0.00013596,2]
[347162811,1735533039416,-500.0,0.00013596,2]
[347162812,1735533039426,-502.28296245,0.00013597,2]
[347162813,1735533039436,-500.0,0.00013597,2]
[347162814,1735533039445,-500.0,0.00013597,2]
[347162815,1735533039455,-507.04536,0.00013597,2]
[347162816,1735533039464,-400.63628572,0.00013597,2]
[347162817,1735533039474,-500.0,0.00013597,2]
[347162818,1735533039483,-500.0,0.00013597,2]
[347162819,1735533039493,-515.67407444,0.00013597,2]
[347162820,1735533039502,-596.57262671,0.00013597,2]
[347162821,1735533039512,-550.37284806,0.00013597,2]
[347162822,1735533039521,-501.34607542,0.00013597,2]
[347162823,1735533039531,-500.27676719,0.00013597,2]
[347162824,1735533039540,-500.68782716,0.00013597,2]
[347162825,1735533039550,-500.0,0.00013597,2]
[347162826,1735533039559,-443.62502219,0.00013597,2]
[347162827,1735533039569,-501.62376073,0.00013597,2]
[347162829,1735533039578,-500.0,0.00013597,2]
[347162831,1735533039587,-501.01092951,0.00013597,2]
[347162832,1735533039597,-501.44856456,0.00013597,2]
[347162833,1735533039606,-505.07602194,0.00013597,2]
[347162834,1735533039616,-500.0,0.00013597,2]
[347162835,1735533039627,-501.66850296,0.00013597,2]
[347162836,1735533039636,-501.47646778,0.00013597,2]
[347162837,1735533039646,-501.57767643,0.00013597,2]
[347162838,1735533039656,-500.0,0.00013597,2]
[347162839,1735533039666,-500.0,0.00013697,2]
[347162840,1735533039676,-500.0,0.00013698,2]
[347162841,1735533039687,-1000.0,0.00013698,2]
[347162842,1735533039697,-500.0,0.00013698,2]
[347162843,1735533039707,-1000.0,0.00013698,2]
[347162844,1735533039718,-2331.8952588,0.00013699,2]
[347162846,1735533039728,-1283.792726,0.00013699,2]
[347162847,1735533039737,-500.0,0.00013699,2]
[347162848,1735533039747,-500.0,0.00013699,2]
[347162849,1735533039756,-500.0,0.00013699,2]
[347162850,1735533039765,-500.0,0.00013699,2]
[347162851,1735533039775,-500.0,0.00013699,2]
[347162852,1735533039784,-500.0,0.00013699,2]
[347162853,1735533039793,-500.0,0.00013699,2]
[347162854,1735533039805,-500.0,0.00013699,2]
[347162855,1735533039815,-500.0,0.00013699,2]
[347162856,1735533039824,-500.0,0.00013699,2]
[347162857,1735533039839,-500.0,0.00013699,2]
[347162858,1735533039856,-500.0,0.00013699,2]
[347162859,1735533039866,-500.0,0.00013699,2]
[347162860,1735533039877,-500.0,0.00013699,2]
[347162861,1735533039886,-500.0,0.00013699,2]
[347162862,1735533039896,-500.0,0.00013699,2]
[347162863,1735533039905,-500.0,0.00013699,2]
[347162864,1735533039914,-500.0,0.00013699,2]
[347162865,1735533039924,-500.0,0.00013699,2]
[347162866,1735533039933,-500.0,0.00013699,2]
[347162867,1735533039943,-500.0,0.00013699,2]
[347162868,1735533039952,-500.0,0.00013699,2]
[347162869,1735533039961,-500.0,0.00013699,2]
[347162870,1735533039970,-500.0,0.00013699,2]
[347162871,1735533039980,-500.0,0.00013699,2]
[347162872,1735533039990,-500.0,0.00013699,2]
[347162873,1735533039999,-500.0,0.00013699,2]
[347162874,1735533040008,-500.0,0.00013699,2]
[347162875,1735533040018,-500.0,0.00013699,2]
[347162876,1735533040027,-278.660405,0.00013699,2]
[347162877,1735533040037,-500.0,0.00013699,2]
[347162878,1735533040047,-500.0,0.00013699,2]
[347162879,1735533040056,-500.0,0.00013699,2]
[347162880,1735533040066,-500.0,0.00013699,2]
[347162881,1735533040075,-500.0,0.00013735,2]
[347162882,1735533040085,-500.0,0.00013753,2]
[347162883,1735533040095,-188.23020643,0.00013763,2]
[347162884,1735533040105,-527.06673634,0.00013763,2]
[347162885,1735533040114,-500.0,0.00013868,2]
[347162886,1735533040124,-500.0,0.00013868,2]
[347162887,1735533040133,-500.0,0.00013869,2]
[347162888,1735533040143,-500.0,0.00013869,2]
[347162889,1735533040153,-500.0,0.00013869,2]
[347162890,1735533040165,-500.0,0.00013869,2]
[347162891,1735533040175,-365.73,0.00013869,2]
[347162892,1735533040183,-500.0,0.00013869,2]
[347162893,1735533040193,-1000.0,0.00013869,2]
[347162894,1735533040203,-500.0,0.00013869,2]
[347162895,1735533040214,-1044.97,0.00013869,2]
[347162896,1735533040223,-480.86,0.00013869,2]
[347162897,1735533040233,-500.0,0.00013869,2]
[347162898,1735533040243,-500.0,0.00013869,2]
[347162899,1735533040253,-500.0,0.00013869,2]
[347162900,1735533040263,-500.0,0.0001387,2]
[347162901,1735533040273,-255.25,0.0001387,2]
[347162902,1735533040282,-604.26313156,0.0001387,2]
[347162903,1735533040292,-500.0,0.0001387,2]
[347162904,1735533040304,-500.0,0.0001387,2]
[347162905,1735533040314,-500.0,0.0001387,2]
[347162906,1735533040323,-503.34563675,0.0001387,2]
[347162907,1735533040333,-401.86240212,0.0001387,2]
[347162908,1735533040342,-530.02848492,0.0001387,2]
[347162909,1735533040352,-520.10358866,0.0001387,2]
[347162910,1735533040362,-506.88225391,0.0001387,2]
[347162911,1735533040371,-509.79478455,0.0001387,2]
[347162912,1735533040381,-503.64265417,0.0001387,2]